fUSD/lending_fUSD_20260515
["ID","MTS","AMOUNT","RATE_DAILY","PERIOD"]
[422334462,1778837445000,-1201.7232547,0.00025796,21]
[422334458,1778837445000,-151.0,0.00025786,2]
[422334430,1778837445000,-388.33051974,0.00025707,7]
[422334442,1778837445000,-3116.38,0.00025786,2]
[422334419,1778837445000,-152.0,0.00025474,4]
[422334387,1778837445000,-36710.46973123,0.00025,2]
[422334404,1778837445000,-207.886579,0.00025,2]
[422334460,1778837445000,-168.44778477,0.00025791,7]
[422334367,1778837445000,-19876.21794906,0.00025,2]
[422334372,1778837445000,-2990.32187978,0.00025,2]
[422334370,1778837445000,-369.97813352,0.00025,2]
[422334389,1778837445000,-151.0,0.00025,2]
[422334382,1778837445000,-151.0,0.00015,2]
[422334390,1778837445000,-177.468642,0.00025,2]
[422334384,1778837445000,-642.0,0.00020793,7]
[422334394,1778837445000,-177.468642,0.00025,2]
[422334385,1778837445000,-151.0,0.00024658,2]
[422334417,1778837445000,-548.3587529,0.00025397,2]
[422334392,1778837445000,-177.468642,0.00025,2]
[422334395,1778837445000,-177.468642,0.00025,2]
[422334409,1778837445000,-721.12765535,0.00025103,2]
[422334400,1778837445000,-207.886579,0.00025,2]
[422334405,1778837445000,-473.44,0.000251,7]
[422334411,1778837445000,-1961.73,0.00025234,2]
[422334398,1778837445000,-207.886579,0.00025,2]
[422334397,1778837445000,-151.0,0.00025,2]
[422334412,1778837445000,-223.65659655,0.00025397,2]
[422334402,1778837445000,-207.886579,0.00025,2]
[422334414,1778837445000,-475.29854131,0.00025397,2]
[422334407,1778837445000,-644.79446246,0.00025103,2]
[422334464,1778837445000,-160.5562156,0.00025796,21]
[422334480,1778837445000,-151.0,0.00026,2]
[422334478,1778837445000,-214.997284,0.00026,7]
[422334533,1778837445000,-151.0,0.000264,2]
[422334523,1778837445000,-548.3587529,0.00026397,2]
[422334538,1778837445000,-151.0,0.000264,2]
[422334541,1778837445000,-151.0,0.000264,2]
[422334551,1778837445000,-151.0,0.00026447,2]
[422334547,1778837445000,-168.44778477,0.00026405,14]
[422334559,1778837445000,-410.848212,0.00026447,2]
[422334554,1778837445000,-410.848212,0.00026447,2]
[422334556,1778837445000,-410.848212,0.00026447,2]
[422334549,1778837445000,-388.33051974,0.00026447,14]
[422334544,1778837445000,-151.0,0.000264,2]
[422334562,1778837445000,-410.848212,0.00026447,2]
[422334564,1778837445000,-151.0,0.00026489,2]
[422334565,1778837445000,-4699.53224209,0.00026489,2]
[422334567,1778837445000,-152.0,0.00026566,5]
[422334570,1778837445000,-187.0,0.00026701,2]
[422334566,1778837445000,-388.33051974,0.00026521,14]
[422334569,1778837445000,-388.33051974,0.00026669,30]
[422334572,1778837445000,-388.33051974,0.00026743,30]
[422334466,1778837445000,-388.33051974,0.00025855,7]
[422334571,1778837445000,-168.44778477,0.00026711,30]
[422334535,1778837445000,-151.0,0.000264,2]
[422334531,1778837445000,-151.0,0.000264,2]
[422334568,1778837445000,-388.33051974,0.00026595,30]
[422334529,1778837445000,-151.0,0.000264,2]
[422334526,1778837445000,-238.54000922,0.00026397,2]
[422334484,1778837445000,-367.879179,0.00026,2]
[422334472,1778837445000,-638.92675921,0.00025934,21]
[422334470,1778837445000,-388.33051974,0.00025929,7]
[422334482,1778837445000,-367.879179,0.00026,2]
[422334488,1778837445000,-367.879179,0.00026,2]
[422334486,1778837445000,-367.879179,0.00026,2]
[422334492,1778837445000,-178.15177483,0.00026027,2]
[422334475,1778837445000,-160.55621558,0.00025934,21]
[422334490,1778837445000,-388.33051974,0.00026003,7]
[422334468,1778837445000,-500.0,0.00025926,2]
[422334496,1778837445000,-168.44778477,0.00026098,7]
[422334494,1778837445000,-388.33051974,0.00026077,7]
[422334498,1778837445000,-4302.0,0.000261,5]
[422334500,1778837445000,-388.33051974,0.00026151,14]
[422334502,1778837445000,-388.33051974,0.00026225,14]
[422334504,1778837445000,-1915.7,0.00026296,2]
[422334508,1778837445000,-388.33051974,0.00026373,14]
[422334510,1778837445000,-223.65659655,0.00026397,2]
[422334506,1778837445000,-388.33051974,0.00026299,14]
[422334512,1778837445000,-475.29854131,0.00026397,2]
[422334476,1778837445000,-550.0,0.00026,2]
[422334610,1778837446000,-194.0,0.00027123,2]
[422334611,1778837446000,-576.0,0.00027137,2]
[422334602,1778837446000,-1263.0,0.00027123,2]
[422334596,1778837446000,-239.69471061,0.00027099,4]
[422334599,1778837446000,-2104.14844559,0.00027123,2]
[422334598,1778837446000,-388.33051974,0.00027113,60]
[422334601,1778837446000,-1315.0,0.00027123,2]
[422334600,1778837446000,-1841.0,0.00027123,2]
[422334609,1778837446000,-272.0,0.00027123,2]
[422334608,1778837446000,-312.0,0.00027123,2]
[422334607,1778837446000,-304.05478419,0.00027123,2]
[422334603,1778837446000,-1104.0,0.00027123,2]
[422334605,1778837446000,-1167.0,0.00027123,2]
[422334604,1778837446000,-364.0,0.00027123,2]
[422334613,1778837446000,-388.33051974,0.00027187,60]
[422334612,1778837446000,-500.0,0.00027151,2]
[422334618,1778837446000,-300.0,0.00027301,2]
[422334619,1778837446000,-300.0,0.00027301,2]
[422334597,1778837446000,-452.0,0.000271,7]
[422334606,1778837446000,-456.0,0.00027123,2]
[422334595,1778837446000,-150.0,0.00027099,4]
[422334585,1778837446000,-388.33051974,0.00026965,30]
[422334594,1778837446000,-150.0,0.00027099,4]
[422334573,1778837446000,-388.33051974,0.00026817,30]
[422334616,1778837446000,-2000.0,0.00027301,2]
[422334576,1778837446000,-400.0,0.00026931,2]
[422334579,1778837446000,-400.0,0.00026931,2]
[422334577,1778837446000,-400.0,0.00026931,2]
[422334574,1778837446000,-388.33051974,0.00026891,30]
[422334578,1778837446000,-400.0,0.00026931,2]
[422334581,1778837446000,-400.0,0.00026931,2]
[422334582,1778837446000,-400.0,0.00026931,2]
[422334583,1778837446000,-400.0,0.00026931,2]
[422334580,1778837446000,-400.0,0.00026931,2]
[422334584,1778837446000,-290.0,0.00026931,2]
[422334586,1778837446000,-250.0,0.00027,2]
[422334589,1778837446000,-150.0,0.00027,2]
[422334587,1778837446000,-1048.70305547,0.00027,2]
[422334590,1778837446000,-168.44778477,0.00027018,60]
[422334588,1778837446000,-530.0,0.00027,2]
[422334592,1778837446000,-150.0,0.00027099,4]
[422334591,1778837446000,-388.33051974,0.00027039,60]
[422334593,1778837446000,-150.0,0.00027099,4]
[422334614,1778837446000,-388.33051974,0.00027261,60]
[422334575,1778837446000,-400.0,0.00026931,2]
[422334617,1778837446000,-300.0,0.00027301,2]
[422334651,1778837446000,-230.97303386,0.00027397,7]
[422334652,1778837446000,-316.86569421,0.00027397,7]
[422334655,1778837446000,-175.0,0.00027397,2]
[422334657,1778837446000,-175.0,0.00027397,2]
[422334654,1778837446000,-175.0,0.00027397,2]
[422334658,1778837446000,-175.0,0.00027397,2]
[422334656,1778837446000,-175.0,0.00027397,2]
[422334659,1778837446000,-175.0,0.00027397,2]
[422334661,1778837446000,-175.0,0.00027397,2]
[422334650,1778837446000,-536.80364796,0.00027397,7]
[422334660,1778837446000,-175.0,0.00027397,2]
[422334662,1778837446000,-175.0,0.00027397,2]
[422334663,1778837446000,-175.0,0.00027397,2]
[422334666,1778837446000,-175.0,0.00027397,2]
[422334668,1778837446000,-175.0,0.00027397,2]
[422334667,1778837446000,-175.0,0.00027397,2]
[422334664,1778837446000,-175.0,0.00027397,2]
[422334670,1778837446000,-175.0,0.00027397,2]
[422334669,1778837446000,-175.0,0.00027397,2]
[422334674,1778837446000,-175.0,0.00027397,2]
[422334665,1778837446000,-175.0,0.00027397,2]
[422334653,1778837446000,-365.57250193,0.00027397,7]
[422334615,1778837446000,-177.36367772,0.000273,30]
[422334646,1778837446000,-453.626564,0.0002739,2]
[422334643,1778837446000,-453.626564,0.0002739,2]
[422334620,1778837446000,-300.0,0.00027301,2]
[422334621,1778837446000,-300.0,0.00027301,2]
[422334622,1778837446000,-300.0,0.00027301,2]
[422334626,1778837446000,-168.44778477,0.00027324,60]
[422334625,1778837446000,-204.0,0.00027301,2]
[422334633,1778837446000,-329.040119,0.0002739,2]
[422334635,1778837446000,-329.040119,0.0002739,2]
[422334624,1778837446000,-300.0,0.00027301,2]
[422334631,1778837446000,-8234.16656843,0.0002739,2]
[422334628,1778837446000,-388.33051974,0.00027335,60]
[422334630,1778837446000,-4168.06920764,0.0002739,2]
[422334623,1778837446000,-300.0,0.00027301,2]
[422334642,1778837446000,-151.0,0.0002739,2]
[422334649,1778837446000,-235.79986446,0.00027397,7]
[422334645,1778837446000,-453.626564,0.0002739,2]
[422334644,1778837446000,-453.626564,0.0002739,2]
[422334640,1778837446000,-329.040119,0.0002739,2]
[422334647,1778837446000,-228.53757467,0.00027397,2]
[422334638,1778837446000,-329.040119,0.0002739,2]
[422334648,1778837446000,-233.26748192,0.00027397,30]
[422334715,1778837447000,-158.049012,0.00027397,2]
[422334703,1778837447000,-175.0,0.00027397,2]
[422334705,1778837447000,-1500.0,0.00027397,2]
[422334700,1778837447000,-175.0,0.00027397,2]
[422334702,1778837447000,-175.0,0.00027397,2]
[422334708,1778837447000,-151.0,0.00027397,2]
[422334704,1778837447000,-181.0,0.00027397,2]
[422334709,1778837447000,-151.0,0.00027397,2]
[422334707,1778837447000,-151.0,0.00027397,2]
[422334716,1778837447000,-158.049012,0.00027397,2]
[422334722,1778837447000,-151.0,0.00027397,2]
[422334712,1778837447000,-158.049012,0.00027397,2]
[422334711,1778837447000,-158.049012,0.00027397,2]
[422334718,1778837447000,-158.049012,0.00027397,2]
[422334710,1778837447000,-300.0,0.00027397,2]
[422334714,1778837447000,-158.049012,0.00027397,2]
[422334719,1778837447000,-605.52,0.00027397,2]
[422334713,1778837447000,-158.049012,0.00027397,2]
[422334720,1778837447000,-151.0,0.00027397,2]
[422334721,1778837447000,-151.0,0.00027397,2]
[422334701,1778837447000,-175.0,0.00027397,2]
[422334717,1778837447000,-158.049012,0.00027397,2]
[422334699,1778837447000,-175.0,0.00027397,2]
[422334697,1778837447000,-175.0,0.00027397,2]
[422334696,1778837447000,-175.0,0.00027397,2]
[422334679,1778837447000,-175.0,0.00027397,2]
[422334675,1778837447000,-175.0,0.00027397,2]
[422334685,1778837447000,-175.0,0.00027397,2]
[422334676,1778837447000,-175.0,0.00027397,2]
[422334678,1778837447000,-175.0,0.00027397,2]
[422334681,1778837447000,-175.0,0.00027397,2]
[422334680,1778837447000,-175.0,0.00027397,2]
[422334677,1778837447000,-175.0,0.00027397,2]
[422334684,1778837447000,-175.0,0.00027397,2]
[422334682,1778837447000,-175.0,0.00027397,2]
[422334698,1778837447000,-175.0,0.00027397,2]
[422334683,1778837447000,-175.0,0.00027397,2]
[422334689,1778837447000,-175.0,0.00027397,2]
[422334727,1778837447000,-151.0,0.00027397,2]
[422334688,1778837447000,-175.0,0.00027397,2]
[422334686,1778837447000,-175.0,0.00027397,2]
[422334692,1778837447000,-175.0,0.00027397,2]
[422334693,1778837447000,-175.0,0.00027397,2]
[422334694,1778837447000,-175.0,0.00027397,2]
[422334690,1778837447000,-175.0,0.00027397,2]
[422334695,1778837447000,-175.0,0.00027397,2]
[422334691,1778837447000,-175.0,0.00027397,2]
[422334687,1778837447000,-175.0,0.00027397,2]
[422334729,1778837447000,-179.259988,0.00027397,2]
[422334706,1778837447000,-151.0,0.00027397,2]
[422334725,1778837447000,-151.0,0.00027397,2]
[422334749,1778837447000,-388.33051974,0.00027409,60]
[422334754,1778837447000,-12691.61,0.0002764,7]
[422334755,1778837447000,-1000.0,0.00027648,7]
[422334753,1778837447000,-2864.2380244,0.0002754,2]
[422334758,1778837447000,-500.0,0.0002767,2]
[422334757,1778837447000,-152.0,0.00027658,6]
[422334760,1778837447000,-500.0,0.0002767,2]
[422334759,1778837447000,-500.0,0.0002767,2]
[422334761,1778837447000,-500.0,0.0002767,2]
[422334763,1778837447000,-500.0,0.0002767,2]
[422334765,1778837447000,-500.0,0.0002767,2]
[422334766,1778837447000,-500.0,0.0002767,2]
[422334762,1778837447000,-500.0,0.0002767,2]
[422334767,1778837447000,-483.0,0.0002767,2]
[422334768,1778837447000,-576.0,0.00027671,2]
[422334770,1778837447000,-2000.0,0.00027788,2]
[422334772,1778837447000,-2000.0,0.00027788,2]
[422334773,1778837447000,-2000.0,0.00027788,2]
[422334771,1778837447000,-2000.0,0.00027788,2]
[422334774,1778837447000,-2000.0,0.00027788,2]
[422334769,1778837447000,-150.0,0.00027701,7]
[422334734,1778837447000,-179.259988,0.00027397,2]
[422334775,1778837447000,-1564.0,0.00027788,2]
[422334752,1778837447000,-2455.8066701,0.0002754,2]
[422334756,1778837447000,-180.37574427,0.00027654,2]
[422334764,1778837447000,-500.0,0.0002767,2]
[422334751,1778837447000,-78996.5310931,0.0002754,2]
[422334724,1778837447000,-151.0,0.00027397,2]
[422334750,1778837447000,-196.20919772,0.00027534,2]
[422334728,1778837447000,-179.259988,0.00027397,2]
[422334723,1778837447000,-151.0,0.00027397,2]
[422334731,1778837447000,-179.259988,0.00027397,2]
[422334732,1778837447000,-179.259988,0.00027397,2]
[422334726,1778837447000,-151.0,0.00027397,2]
[422334730,1778837447000,-179.259988,0.00027397,2]
[422334736,1778837447000,-208.119792,0.00027397,2]
[422334735,1778837447000,-179.259988,0.00027397,2]
[422334739,1778837447000,-5494.38,0.00027397,10]
[422334737,1778837447000,-7911.91,0.00027397,10]
[422334733,1778837447000,-179.259988,0.00027397,2]
[422334743,1778837447000,-159.02667282,0.00027397,7]
[422334738,1778837447000,-6593.26,0.00027397,10]
[422334745,1778837447000,-166.39593959,0.00027397,5]
[422334744,1778837447000,-150.0,0.00027397,2]
[422334742,1778837447000,-365.57250193,0.00027397,7]
[422334741,1778837447000,-316.86569421,0.00027397,7]
[422334746,1778837447000,-1466.72,0.000274,7]
[422334740,1778837447000,-298.2087954,0.00027397,7]
[422334748,1778837447000,-473.44,0.000274,7]
[422334747,1778837447000,-2421.33,0.000274,7]
[422334808,1778837448000,-185.51,0.00028,2]
[422334820,1778837448000,-150.0,0.00028311,30]
[422334817,1778837448000,-150.0,0.00028303,7]
[422334815,1778837448000,-1915.7,0.00028267,2]
[422334812,1778837448000,-500.0,0.00028224,60]
[422334806,1778837448000,-600.0,0.00028,2]
[422334809,1778837448000,-1000.0,0.00028009,7]
[422334811,1778837448000,-576.0,0.00028205,3]
[422334807,1778837448000,-185.51,0.00028,2]
[422334818,1778837448000,-500.61,0.00028305,2]
[422334813,1778837448000,-500.0,0.00028224,60]
[422334822,1778837448000,-1307.82,0.00028321,2]
[422334831,1778837448000,-891.56,0.00028371,7]
[422334819,1778837448000,-500.43,0.00028309,2]
[422334824,1778837448000,-891.59,0.00028328,2]
[422334825,1778837448000,-500.61,0.00028353,7]
[422334816,1778837448000,-1466.72,0.000283,7]
[422334826,1778837448000,-500.43,0.00028357,7]
[422334823,1778837448000,-891.56,0.00028324,2]
[422334827,1778837448000,-366.97,0.00028362,2]
[422334833,1778837448000,-891.59,0.00028375,7]
[422334834,1778837448000,-500.61,0.00028402,30]
[422334828,1778837448000,-1307.82,0.00028365,7]
[422334805,1778837448000,-1354.0,0.00027936,2]
[422334830,1778837448000,-1307.82,0.00028368,7]
[422334821,1778837448000,-1307.82,0.00028317,2]
[422334814,1778837448000,-500.0,0.00028224,60]
[422334777,1778837448000,-500.0,0.000278,7]
[422334804,1778837448000,-926.0,0.00027936,2]
[422334839,1778837448000,-1307.82,0.00028416,30]
[422334779,1778837448000,-668.65185757,0.00027842,2]
[422334776,1778837448000,-766.0,0.00027788,2]
[422334778,1778837448000,-205.588299,0.000278,2]
[422334781,1778837448000,-1235.0,0.00027848,2]
[422334780,1778837448000,-747.8093786,0.00027842,2]
[422334783,1778837448000,-550.0,0.00027848,2]
[422334784,1778837448000,-550.0,0.00027848,2]
[422334782,1778837448000,-550.0,0.00027848,2]
[422334791,1778837448000,-350.0,0.00027848,2]
[422334786,1778837448000,-550.0,0.00027848,2]
[422334789,1778837448000,-550.0,0.00027848,2]
[422334803,1778837448000,-1223.0,0.00027936,2]
[422334785,1778837448000,-550.0,0.00027848,2]
[422334787,1778837448000,-550.0,0.00027848,2]
[422334790,1778837448000,-221.0,0.00027848,2]
[422334792,1778837448000,-350.0,0.00027848,2]
[422334793,1778837448000,-350.0,0.00027848,2]
[422334794,1778837448000,-350.0,0.00027848,2]
[422334795,1778837448000,-350.0,0.00027848,2]
[422334796,1778837448000,-350.0,0.00027848,2]
[422334801,1778837448000,-150.0,0.00027936,2]
[422334798,1778837448000,-350.0,0.00027848,2]
[422334797,1778837448000,-350.0,0.00027848,2]
[422334802,1778837448000,-1270.0,0.00027936,2]
[422334800,1778837448000,-150.0,0.00027936,2]
[422334788,1778837448000,-550.0,0.00027848,2]
[422334838,1778837448000,-1307.82,0.00028413,30]
[422334799,1778837448000,-388.0,0.00027848,2]
[422334832,1778837448000,-50000.0,0.00028375,2]
[422334875,1778837448000,-366.97,0.00028637,2]
[422334869,1778837448000,-500.61,0.00028598,2]
[422334868,1778837448000,-366.85,0.00028593,30]
[422334871,1778837448000,-1307.82,0.00028606,2]
[422334874,1778837448000,-891.59,0.00028613,2]
[422334873,1778837448000,-891.56,0.00028611,2]
[422334872,1778837448000,-1307.82,0.00028608,2]
[422334870,1778837448000,-500.43,0.000286,2]
[422334876,1778837448000,-366.85,0.00028639,2]
[422334877,1778837448000,-500.61,0.00028646,7]
[422334880,1778837448000,-1307.82,0.00028656,7]
[422334879,1778837448000,-1307.82,0.00028654,7]
[422334881,1778837448000,-891.56,0.00028658,7]
[422334878,1778837448000,-500.43,0.00028649,7]
[422334885,1778837448000,-500.61,0.00028695,30]
[422334886,1778837448000,-500.43,0.00028698,30]
[422334883,1778837448000,-366.97,0.00028682,7]
[422334884,1778837448000,-366.85,0.00028684,7]
[422334882,1778837448000,-891.59,0.00028661,7]
[422334887,1778837448000,-2421.33,0.000287,7]
[422334888,1778837448000,-1307.82,0.00028702,30]
[422334890,1778837448000,-891.56,0.00028706,30]
[422334889,1778837448000,-1307.82,0.00028704,30]
[422334891,1778837448000,-891.59,0.00028709,30]
[422334892,1778837448000,-366.97,0.00028728,30]
[422334893,1778837448000,-366.85,0.0002873,30]
[422334835,1778837448000,-500.43,0.00028406,30]
[422334865,1778837448000,-891.56,0.00028563,30]
[422334866,1778837448000,-891.59,0.00028566,30]
[422334810,1778837448000,-2421.33,0.000281,7]
[422334864,1778837448000,-1307.82,0.0002856,30]
[422334867,1778837448000,-366.97,0.00028591,30]
[422334836,1778837448000,-366.97,0.00028407,7]
[422334829,1778837448000,-366.85,0.00028365,2]
[422334837,1778837448000,-366.85,0.0002841,7]
[422334840,1778837448000,-891.56,0.00028419,30]
[422334844,1778837448000,-500.43,0.00028454,2]
[422334841,1778837448000,-891.59,0.00028423,30]
[422334852,1778837448000,-500.61,0.000285,7]
[422334845,1778837448000,-366.85,0.00028456,30]
[422334842,1778837448000,-500.61,0.00028451,2]
[422334851,1778837448000,-366.97,0.00028499,2]
[422334846,1778837448000,-1307.82,0.00028461,2]
[422334849,1778837448000,-891.56,0.00028467,2]
[422334848,1778837448000,-1307.82,0.00028464,2]
[422334843,1778837448000,-366.97,0.00028453,30]
[422334847,1778837448000,-10000.0,0.00028463,7]
[422334854,1778837448000,-500.43,0.00028503,7]
[422334853,1778837448000,-366.85,0.00028502,2]
[422334856,1778837448000,-1307.82,0.00028512,7]
[422334863,1778837448000,-1307.82,0.00028558,30]
[422334855,1778837448000,-1307.82,0.00028509,7]
[422334858,1778837448000,-891.59,0.00028518,7]
[422334857,1778837448000,-891.56,0.00028515,7]
[422334859,1778837448000,-366.97,0.00028545,7]
[422334860,1778837448000,-366.85,0.00028547,7]
[422334862,1778837448000,-500.43,0.00028552,30]
[422334850,1778837448000,-891.59,0.0002847,2]
[422334861,1778837448000,-500.61,0.00028549,30]
[422334935,1778837449000,-1307.82,0.00028895,2]
[422334937,1778837449000,-891.56,0.00028898,2]
[422334929,1778837449000,-500.0,0.00028868,7]
[422334934,1778837449000,-500.43,0.00028892,2]
[422334931,1778837449000,-500.0,0.00028868,7]
[422334928,1778837449000,-500.0,0.00028868,7]
[422334932,1778837449000,-357.49,0.00028868,7]
[422334930,1778837449000,-500.0,0.00028868,7]
[422334927,1778837449000,-366.85,0.00028867,30]
[422334925,1778837449000,-891.59,0.00028851,30]
[422334941,1778837449000,-366.97,0.00028912,2]
[422334933,1778837449000,-500.61,0.00028891,2]
[422334940,1778837449000,-150.0,0.00028905,7]
[422334953,1778837449000,-2000.0,0.00028927,2]
[422334946,1778837449000,-2000.0,0.00028927,2]
[422334942,1778837449000,-366.85,0.00028913,2]
[422334938,1778837449000,-891.59,0.00028899,2]
[422334949,1778837449000,-2000.0,0.00028927,2]
[422334947,1778837449000,-2000.0,0.00028927,2]
[422334950,1778837449000,-2000.0,0.00028927,2]
[422334943,1778837449000,-2000.0,0.00028927,2]
[422334948,1778837449000,-2000.0,0.00028927,2]
[422334945,1778837449000,-2000.0,0.00028927,2]
[422334952,1778837449000,-2000.0,0.00028927,2]
[422334963,1778837449000,-500.61,0.00028939,7]
[422334936,1778837449000,-1307.82,0.00028896,2]
[422334951,1778837449000,-2000.0,0.00028927,2]
[422334944,1778837449000,-2000.0,0.00028927,2]
[422334926,1778837449000,-366.97,0.00028866,30]
[422334912,1778837449000,-500.61,0.00028793,7]
[422334920,1778837449000,-500.61,0.00028842,30]
[422334896,1778837449000,-500.43,0.00028746,2]
[422334894,1778837449000,-576.0,0.00028739,3]
[422334897,1778837449000,-1307.82,0.0002875,2]
[422334895,1778837449000,-500.61,0.00028744,2]
[422334898,1778837449000,-152.0,0.0002875,7]
[422334900,1778837449000,-891.56,0.00028754,2]
[422334910,1778837449000,-366.97,0.00028774,2]
[422334911,1778837449000,-366.85,0.00028776,2]
[422334901,1778837449000,-891.59,0.00028756,2]
[422334903,1778837449000,-611.627547,0.00028767,7]
[422334905,1778837449000,-611.627547,0.00028767,7]
[422334902,1778837449000,-611.627547,0.00028767,7]
[422334899,1778837449000,-1307.82,0.00028752,2]
[422334904,1778837449000,-611.627547,0.00028767,7]
[422334908,1778837449000,-611.627547,0.00028767,7]
[422334906,1778837449000,-611.627547,0.00028767,7]
[422334907,1778837449000,-611.627547,0.00028767,7]
[422334909,1778837449000,-611.627547,0.00028767,7]
[422334955,1778837449000,-827.0,0.00028927,2]
[422334914,1778837449000,-1307.82,0.00028799,7]
[422334924,1778837449000,-891.56,0.0002885,30]
[422334913,1778837449000,-500.43,0.00028795,7]
[422334923,1778837449000,-1307.82,0.00028848,30]
[422334922,1778837449000,-1307.82,0.00028847,30]
[422334916,1778837449000,-891.56,0.00028802,7]
[422334917,1778837449000,-891.59,0.00028804,7]
[422334915,1778837449000,-1307.82,0.000288,7]
[422334919,1778837449000,-366.85,0.00028821,7]
[422334918,1778837449000,-366.97,0.0002882,7]
[422334921,1778837449000,-500.43,0.00028843,30]
[422334954,1778837449000,-2000.0,0.00028927,2]
[422334939,1778837449000,-2616.0,0.00028904,2]
[422334960,1778837449000,-600.0,0.00028927,2]
[422334993,1778837449000,-891.59,0.0002909,7]
[422334997,1778837449000,-500.61,0.00029135,30]
[422334990,1778837449000,-500.43,0.00029087,7]
[422335001,1778837449000,-200.0,0.00029137,2]
[422335000,1778837449000,-200.0,0.00029137,2]
[422334998,1778837449000,-500.43,0.00029135,30]
[422334999,1778837449000,-1307.82,0.00029136,30]
[422334995,1778837449000,-366.85,0.00029095,7]
[422334996,1778837449000,-473.44,0.000291,7]
[422335003,1778837449000,-200.0,0.00029137,2]
[422335014,1778837449000,-500.43,0.00029184,2]
[422335004,1778837449000,-200.0,0.00029137,2]
[422335008,1778837449000,-891.59,0.00029137,30]
[422335006,1778837449000,-200.0,0.00029137,2]
[422335002,1778837449000,-200.0,0.00029137,2]
[422335013,1778837449000,-1307.82,0.00029184,2]
[422335005,1778837449000,-308.7647244,0.00029137,2]
[422335015,1778837449000,-891.56,0.00029185,2]
[422335007,1778837449000,-891.56,0.00029137,30]
[422335009,1778837449000,-366.97,0.00029141,30]
[422335011,1778837449000,-9942.27420984,0.0002918,2]
[422335010,1778837449000,-366.85,0.00029141,30]
[422335012,1778837449000,-500.61,0.00029184,2]
[422335018,1778837449000,-366.85,0.00029187,2]
[422335017,1778837449000,-366.97,0.00029187,2]
[422335016,1778837449000,-891.59,0.00029185,2]
[422335019,1778837449000,-150.0,0.00029224,30]
[422335020,1778837449000,-1308.1,0.00029232,7]
[422334956,1778837449000,-600.0,0.00028927,2]
[422334994,1778837449000,-366.97,0.00029095,7]
[422334991,1778837449000,-1307.82,0.00029088,7]
[422334962,1778837449000,-356.0,0.00028927,2]
[422334989,1778837449000,-500.61,0.00029086,7]
[422334957,1778837449000,-600.0,0.00028927,2]
[422334959,1778837449000,-600.0,0.00028927,2]
[422334958,1778837449000,-600.0,0.00028927,2]
[422334961,1778837449000,-600.0,0.00028927,2]
[422334964,1778837449000,-500.43,0.00028941,7]
[422334992,1778837449000,-891.56,0.00029089,7]
[422334968,1778837449000,-891.59,0.00028947,7]
[422334969,1778837449000,-366.97,0.00028957,7]
[422334967,1778837449000,-891.56,0.00028945,7]
[422334966,1778837449000,-1307.82,0.00028944,7]
[422334971,1778837449000,-500.61,0.00028988,30]
[422334965,1778837449000,-1307.82,0.00028943,7]
[422334970,1778837449000,-366.85,0.00028958,7]